fUSD/lending_fUSD_20251112
["ID","MTS","AMOUNT","RATE_DAILY","PERIOD"]
[393699447,1762930311855,-239.83181913,0.00038356,20]
[393699448,1762930311866,-500.0,0.00038356,20]
[393699449,1762930311875,-1170.46,0.00038356,20]
[393699450,1762930311885,-500.0,0.00038356,20]
[393699451,1762930311895,-830.98,0.00038356,20]
[393699452,1762930311905,-500.0,0.00038356,20]
[393699453,1762930311914,-1170.46,0.00038356,20]
[393699454,1762930311924,-500.0,0.00038356,20]
[393699455,1762930311934,-500.0,0.00038356,20]
[393699456,1762930311944,-830.98,0.00038356,20]
[393699457,1762930311953,-1170.46,0.00038356,20]
[393699458,1762930311963,-304.04269117,0.00038356,20]
[393699459,1762930311973,-500.0,0.00038356,20]
[393699460,1762930311982,-830.98,0.00038356,20]
[393699461,1762930311992,-1170.46,0.00038356,20]
[393699462,1762930312001,-500.0,0.00038356,20]
[393699463,1762930312011,-500.0,0.00038356,20]
[393699464,1762930312020,-500.0,0.00038356,20]
[393699465,1762930312029,-630.89077957,0.00038356,20]
[393699466,1762930312039,-1170.46,0.00038356,20]
[393699467,1762930312048,-500.0,0.00038356,20]
[393699468,1762930312057,-500.0,0.00038356,20]
[393699469,1762930312067,-500.0,0.00038356,20]
[393699470,1762930312075,-500.0,0.00038356,20]
[393699471,1762930312085,-500.0,0.00038356,20]
[393699472,1762930312094,-500.0,0.00038356,20]
[393699473,1762930312103,-500.0,0.00038356,20]
[393699474,1762930312112,-500.0,0.00038356,20]
[393699475,1762930312122,-522.54385129,0.00038356,20]
[393699476,1762930312131,-500.0,0.00038356,20]
[393699477,1762930312140,-500.0,0.00038356,20]
[393699478,1762930312150,-500.0,0.00038356,20]
[393699479,1762930312160,-500.0,0.00038356,20]
[393699480,1762930312169,-500.0,0.00038356,20]
[393699481,1762930312179,-500.0,0.00038356,20]
[393699482,1762930312188,-500.0,0.00038356,20]
[393699483,1762930312198,-500.0,0.00038356,20]
[393699484,1762930312207,-500.0,0.00038356,20]
[393699485,1762930312217,-500.0,0.00038356,20]
[393699486,1762930312227,-500.0,0.00038356,20]
[393699487,1762930312236,-1693.51,0.00038356,20]
[393699488,1762930312246,-500.0,0.00038356,20]
[393699489,1762930312255,-250.29132131,0.00038356,20]
[393699490,1762930312266,-500.0,0.00038356,20]
[393699491,1762930312280,-1693.51,0.00038356,20]
[393699492,1762930312290,-500.0,0.00038356,20]
[393699493,1762930312299,-151.0,0.00038356,31]
[393699494,1762930312309,-631.14249444,0.00038356,20]
[393699495,1762930312319,-444.67910097,0.00038356,20]
[393699496,1762930312329,-1693.51,0.00038356,20]
[393699497,1762930312338,-628.32578045,0.00038356,20]
[393699498,1762930312349,-500.0,0.00038356,20]
[393699499,1762930312358,-151.0,0.00038356,31]
[393699500,1762930312368,-500.0,0.00038356,20]
[393699501,1762930312378,-1693.51,0.00038356,20]
[393699502,1762930312387,-500.0,0.00038356,20]
[393699503,1762930312397,-151.0,0.00038356,31]
[393699504,1762930312406,-1693.51,0.00038356,20]
[393699505,1762930312415,-500.0,0.00038356,20]
[393699506,1762930312425,-204.65204917,0.00038356,20]
[393699507,1762930312436,-1693.51,0.00038356,20]
[393699508,1762930312445,-500.0,0.00038356,20]
[393699509,1762930312456,-1693.51,0.00038356,20]
[393699510,1762930312465,-500.0,0.00038356,20]
[393699511,1762930312475,-500.0,0.00038356,20]
[393699512,1762930312487,-1693.51,0.00038356,20]
[393699513,1762930312499,-1693.51,0.00038356,20]
[393699514,1762930312509,-173.54438092,0.00038356,20]
[393699515,1762930312520,-500.0,0.00038356,20]
[393699516,1762930312530,-1693.51,0.00038356,20]
[393699517,1762930312541,-500.0,0.00038356,20]
[393699518,1762930312550,-1693.51,0.00038356,20]
[393699519,1762930312560,-537.30704079,0.00038356,20]
[393699520,1762930312570,-3305.0,0.00038356,30]
[393699521,1762930312579,-500.0,0.00038356,30]
[393699522,1762930312589,-500.0,0.00038359,30]
[393699523,1762930312599,-500.0,0.00038373,5]
[393699524,1762930312608,-159.84209483,0.00038373,5]
[393699525,1762930312618,-577.06784667,0.00038373,5]
[393699526,1762930312627,-504.15122996,0.00038373,5]
[393699527,1762930312636,-1051.61,0.00038397,20]
[393699528,1762930312646,-507.42,0.00038397,20]
[393699529,1762930312656,-500.0,0.00038397,20]
[393699530,1762930312666,-500.0,0.00038397,20]
[393699531,1762930312677,-574.73,0.00038397,20]
[393699532,1762930312690,-500.0,0.00038397,20]
[393699533,1762930312700,-517.41,0.00038397,20]
[393699534,1762930312711,-500.0,0.00038397,20]
[393699535,1762930312720,-509.06,0.00038397,20]
[393699536,1762930312730,-642.46,0.00038397,20]
[393699537,1762930312739,-500.0,0.00038397,20]
[393699538,1762930312750,-500.0,0.00038397,20]
[393699539,1762930312759,-500.0,0.00038397,20]
[393699540,1762930312769,-500.0,0.00038397,20]
[393699541,1762930312779,-519.34,0.00038397,20]
[393699542,1762930312789,-500.0,0.00038397,20]
[393699543,1762930312799,-1987.1,0.00038397,20]
[393699544,1762930312808,-500.0,0.00038397,20]
[393699545,1762930312817,-883.05,0.00038397,20]
[393699546,1762930312827,-562.96,0.00038397,20]
[393699547,1762930312836,-500.0,0.00038397,20]
[393699548,1762930312845,-757.86,0.00038397,20]
[393699549,1762930312855,-2119.42,0.00038397,2]
[393699550,1762930312864,-576.07272028,0.00038397,20]
[393699551,1762930312874,-883.7,0.00038397,20]
[393699552,1762930312883,-481.41841136,0.00038397,20]
[393699553,1762930312892,-500.0,0.00038397,20]
[393699554,1762930312902,-500.0,0.00038397,20]
[393699555,1762930312913,-960.02,0.00038397,20]
[393699556,1762930312922,-500.0,0.00038397,20]
[393699557,1762930312932,-500.0,0.00038397,20]
[393699558,1762930312941,-747.92,0.00038397,20]
[393699559,1762930312951,-550.51,0.00038397,20]
[393699560,1762930312960,-500.0,0.00038397,20]
[393699561,1762930312970,-572.01,0.00038397,20]
[393699562,1762930312979,-763.79,0.00038397,20]
[393699563,1762930312990,-500.0,0.00038397,20]
[393699564,1762930312999,-732.14,0.00038397,20]
[393699565,1762930313009,-500.0,0.00038397,20]
[393699566,1762930313019,-500.0,0.00038397,20]
[393699567,1762930313029,-1200.01,0.00038397,20]
[393699568,1762930313038,-667.99,0.00038397,20]
[393699569,1762930313048,-724.6,0.00038397,20]
[393699570,1762930313058,-1697.1,0.00038397,20]
[393699571,1762930313068,-500.0,0.00038397,20]
[393699572,1762930313078,-518.5,0.00038397,20]
[393699573,1762930313088,-1171.64,0.00038397,20]
[393699574,1762930313137,-500.0,0.00038397,20]
[393699575,1762930313148,-547.75,0.00038397,20]
[393699576,1762930313159,-725.31,0.00038397,20]
[393699577,1762930313170,-1486.89,0.00038397,20]
[393699578,1762930313179,-568.85630813,0.00038397,20]
[393699579,1762930313189,-991.84,0.00038397,20]
[393699580,1762930313199,-678.36,0.00038397,20]
[393699581,1762930313209,-1330.19,0.00038397,20]
[393699582,1762930313219,-500.0,0.00038397,20]
[393699583,1762930313229,-711.07,0.00038397,20]
[393699584,1762930313239,-298.9624962,0.00038397,20]
[393699585,1762930313249,-1065.8,0.00038397,20]
[393699586,1762930313258,-800.76,0.00038397,20]
[393699587,1762930313272,-590.33,0.00038397,20]
[393699588,1762930313282,-500.0,0.00038397,20]
[393699589,1762930313291,-1016.04,0.00038397,20]
[393699590,1762930313301,-616.05,0.00038397,20]
[393699591,1762930313312,-1443.08,0.00038397,20]
[393699592,1762930313321,-1867.44,0.00038397,20]
[393699593,1762930313331,-500.0,0.00038397,20]
[393699594,1762930313341,-605.59,0.00038397,20]
[393699595,1762930313353,-500.0,0.00038397,20]
[393699596,1762930313363,-500.0,0.00038397,20]
[393699597,1762930313373,-500.0,0.00038397,20]
[393699598,1762930313383,-561.01,0.00038397,20]
[393699599,1762930313392,-830.98,0.00038397,20]
[393699600,1762930313403,-500.0,0.00038397,20]
[393699601,1762930313413,-154.03,0.00038408,120]
[393699602,1762930313424,-500.0,0.00038411,20]
[393699603,1762930313434,-500.0,0.00038411,20]
[393699604,1762930313443,-177.78779683,0.00038411,20]
[393699605,1762930313452,-500.0,0.00038412,7]
[393699606,1762930313462,-500.0,0.00038412,20]
[393699607,1762930313471,-586.15,0.00038412,20]
[393699608,1762930313481,-500.0,0.00038412,20]
[393699609,1762930313491,-500.0,0.00038412,20]
[393699610,1762930313500,-500.0,0.00038412,20]
[393699611,1762930313510,-523.96,0.00038412,20]
[393699612,1762930313519,-500.0,0.00038412,20]
[393699613,1762930313529,-500.0,0.00038412,20]
[393699614,1762930313539,-841.89,0.00038412,20]
[393699615,1762930313548,-500.0,0.00038412,20]
[393699616,1762930313558,-500.0,0.00038412,20]
[393699617,1762930313567,-259.13173923,0.00038412,20]
[393699618,1762930313576,-500.0,0.00038412,20]
[393699619,1762930313586,-500.0,0.00038412,20]
[393699620,1762930313595,-500.0,0.00038412,20]
[393699621,1762930313605,-535.32,0.00038412,20]
[393699622,1762930313615,-500.0,0.00038412,20]
[393699623,1762930313624,-500.0,0.00038412,20]
[393699624,1762930313634,-500.0,0.00038412,20]
[393699625,1762930313643,-500.0,0.00038412,20]
[393699626,1762930313652,-500.0,0.00038412,20]
[393699627,1762930313662,-500.0,0.00038412,20]
[393699628,1762930313672,-500.0,0.00038412,20]
[393699629,1762930313681,-500.0,0.00038412,20]
[393699630,1762930313691,-420.0,0.00038413,7]
[393699631,1762930313701,-2517.21091838,0.00038425,2]
[393699632,1762930313710,-500.0,0.00038428,7]
[393699633,1762930313720,-800.0,0.00038428,7]
[393699634,1762930313730,-166.67,0.00038434,2]
[393699635,1762930313739,-150.0,0.00038436,60]
[393699636,1762930313748,-150.0,0.00038436,60]
[393699637,1762930313758,-150.0,0.00038436,10]
[393699638,1762930313768,-150.0,0.00038436,60]
[393699639,1762930313778,-150.0,0.00038436,2]
[393699640,1762930313787,-500.0,0.00038436,60]
[393699641,1762930313796,-150.0,0.00038436,60]
[393699642,1762930313807,-150.0,0.00038436,60]
[393699643,1762930313818,-150.0,0.00038436,60]
[393699644,1762930313828,-1928.72412975,0.00038447,2]
[393699645,1762930313837,-678.55,0.00038461,30]
[393699646,1762930313847,-151.78644313,0.00038466,30]
[393699647,1762930313856,-177.0,0.00038472,120]
[393699648,1762930313866,-1098.05342992,0.00038473,30]
[393699649,1762930313875,-168.0,0.00038481,7]
[393699650,1762930313885,-500.0,0.00038481,20]
[393699651,1762930313894,-500.0,0.00038481,20]
[393699652,1762930313903,-500.0,0.00038481,20]
[393699653,1762930313914,-500.0,0.00038481,20]
[393699654,1762930313924,-500.0,0.00038481,20]
[393699655,1762930313933,-500.0,0.00038481,20]
[393699656,1762930313943,-500.0,0.00038481,20]
[393699657,1762930313952,-500.0,0.00038481,20]
[393699658,1762930313962,-637.18,0.00038481,20]
[393699659,1762930313972,-500.0,0.00038481,20]
[393699660,1762930313982,-500.0,0.00038481,20]
[393699661,1762930313992,-496.07459998,0.00038481,20]
[393699662,1762930314001,-500.0,0.00038481,2]
[393699663,1762930314011,-500.0,0.00038481,20]
[393699664,1762930314020,-500.0,0.00038481,20]
[393699665,1762930314030,-573.9280088,0.00038481,20]
[393699666,1762930314040,-500.0,0.00038481,20]
[393699667,1762930314050,-500.0,0.00038481,20]
[393699668,1762930314062,-1290.86,0.00038481,2]
[393699669,1762930314072,-500.0,0.00038481,20]
[393699670,1762930314081,-500.0,0.00038481,20]
[393699671,1762930314091,-519.53,0.00038481,20]
[393699672,1762930314100,-500.0,0.00038481,20]
[393699673,1762930314110,-500.0,0.00038481,20]
[393699674,1762930314120,-500.0,0.00038481,15]
[393699675,1762930314130,-500.0,0.00038481,20]
[393699676,1762930314139,-535.82,0.00038481,20]
[393699677,1762930314149,-500.0,0.00038481,20]
[393699678,1762930314159,-523.83,0.00038481,20]
[393699679,1762930314169,-694.72,0.00038481,20]
[393699680,1762930314178,-500.0,0.00038481,20]
[393699681,1762930314188,-579.10755102,0.00038481,20]
[393699682,1762930314197,-300.0,0.00038481,20]
[393699683,1762930314206,-1025.02,0.00038481,120]
[393699684,1762930314216,-500.0,0.00038481,20]
[393699685,1762930314229,-500.0,0.00038481,20]
[393699686,1762930314247,-500.0,0.00038481,20]
[393699687,1762930314262,-500.0,0.00038481,20]
[393699688,1762930314275,-551.44,0.00038481,20]
[393699689,1762930314285,-500.0,0.00038481,20]
[393699690,1762930314295,-293.44281723,0.00038481,20]
[393699691,1762930314305,-739.71,0.00038481,20]
[393699692,1762930314315,-500.0,0.00038481,20]
[393699693,1762930314326,-500.0,0.00038481,20]
[393699694,1762930314336,-500.0,0.00038481,20]
[393699695,1762930314347,-246.14020651,0.00038481,20]
[393699696,1762930314357,-579.99,0.00038481,20]
[393699697,1762930314367,-500.0,0.00038481,20]
[393699698,1762930314377,-514.13,0.00038481,20]
[393699699,1762930314387,-516.0,0.0003849,20]
[393699700,1762930314396,-1078.86,0.0003849,20]
[393699701,1762930314406,-574.95,0.0003849,20]
[393699702,1762930314416,-875.22,0.0003849,20]
[393699703,1762930314426,-563.8,0.0003849,20]
[393699704,1762930314435,-1045.75,0.0003849,20]
[393699705,1762930314445,-500.0,0.0003849,20]
[393699706,1762930314455,-500.0,0.0003849,20]
[393699707,1762930314464,-831.44,0.0003849,20]
[393699708,1762930314474,-554.31,0.0003849,20]
[393699709,1762930314483,-631.83,0.0003849,20]
[393699710,1762930314493,-1116.57,0.0003849,20]
[393699711,1762930314502,-819.48,0.0003849,20]
[393699712,1762930314511,-500.0,0.0003849,20]
[393699713,1762930314520,-666.33,0.0003849,20]
[393699714,1762930314529,-1170.46,0.0003849,20]
[393699715,1762930314538,-2604.31,0.00038491,20]
[393699716,1762930314547,-278.59524416,0.00038491,20]
[393699717,1762930314556,-500.0,0.00038491,20]
[393699718,1762930314566,-500.0,0.00038491,20]
[393699719,1762930314576,-500.0,0.00038491,20]
[393699720,1762930314586,-548.49,0.00038491,20]
[393699721,1762930314595,-709.53,0.00038491,20]
[393699722,1762930314605,-1297.32,0.00038491,20]
[393699723,1762930314614,-531.94,0.00038491,20]
[393699724,1762930314624,-1059.47,0.00038491,20]
[393699725,1762930314637,-738.49,0.00038491,20]
[393699726,1762930314647,-665.52,0.00038491,20]
[393699727,1762930314656,-500.0,0.00038491,20]
[393699728,1762930314666,-500.0,0.00038491,20]
[393699729,1762930314677,-500.0,0.00038491,20]
[393699730,1762930314687,-1049.74,0.00038491,20]
[393699731,1762930314696,-743.42,0.00038491,20]
[393699732,1762930314707,-666.69,0.00038491,20]
[393699733,1762930314716,-523.61560259,0.00038491,20]
[393699734,1762930314726,-630.64,0.00038491,20]
[393699735,1762930314735,-500.0,0.00038492,20]
[393699736,1762930314745,-500.0,0.00038492,20]
[393699737,1762930314755,-1000.0,0.000385,7]
[393699738,1762930314765,-154.03,0.00038508,120]
[393699739,1762930314775,-183.4994872,0.00038524,2]
[393699740,1762930314786,-2517.21091838,0.00038537,2]
[393699741,1762930314796,-500.0,0.00038544,20]
[393699742,1762930314805,-1065.11,0.00038544,20]
[393699743,1762930314815,-688.04,0.00038544,20]
[393699744,1762930314826,-812.44,0.00038544,20]
[393699745,1762930314839,-686.2,0.00038544,20]
[393699746,1762930314848,-491.43751368,0.00038544,20]
[393699747,1762930314858,-500.0,0.00038544,20]
[393699748,1762930314868,-500.0,0.00038544,20]
[393699749,1762930314878,-510.29,0.00038544,20]
[393699750,1762930314887,-1000.05,0.00038544,20]
[393699751,1762930314897,-500.0,0.00038544,20]
[393699752,1762930314907,-500.0,0.00038544,20]
[393699753,1762930314917,-500.0,0.00038544,20]
[393699754,1762930314926,-516.91,0.00038544,20]
[393699755,1762930314936,-1087.01,0.00038544,20]
[393699756,1762930314946,-816.71,0.00038544,20]
[393699757,1762930314955,-500.0,0.00038544,20]
[393699758,1762930314965,-902.62,0.00038544,20]
[393699759,1762930314974,-500.0,0.00038544,20]
[393699760,1762930314984,-1493.93,0.00038544,20]
[393699761,1762930314993,-500.0,0.00038544,20]
[393699762,1762930315003,-500.0,0.00038544,20]
[393699763,1762930315012,-509.94,0.00038544,20]
[393699764,1762930315021,-1097.77,0.00038544,20]
[393699765,1762930315034,-705.54,0.00038544,20]
[393699766,1762930315044,-500.0,0.00038544,20]
[393699767,1762930315055,-768.67,0.00038544,20]
[393699768,1762930315064,-830.95,0.00038544,20]
[393699769,1762930315073,-696.05,0.00038544,20]
[393699770,1762930315083,-820.52,0.00038544,20]
[393699771,1762930315092,-1144.3,0.00038544,20]
[393699772,1762930315102,-529.28,0.00038544,20]
[393699773,1762930315111,-475.63389913,0.00038544,20]
[393699774,1762930315122,-500.0,0.00038544,20]
[393699775,1762930315131,-583.49,0.00038544,20]
[393699776,1762930315141,-500.0,0.00038544,20]
[393699777,1762930315151,-1439.59,0.00038544,20]
[393699778,1762930315161,-500.0,0.00038544,20]
[393699779,1762930315171,-500.0,0.00038544,20]
[393699780,1762930315182,-1928.72412975,0.00038556,2]
[393699781,1762930315191,-174.43,0.00038565,2]
[393699782,1762930315201,-150.0,0.00038573,60]
[393699783,1762930315211,-150.0,0.00038573,60]
[393699784,1762930315221,-150.0,0.00038573,10]
[393699785,1762930315231,-150.0,0.00038573,2]
[393699786,1762930315245,-500.0,0.00038573,60]
[393699787,1762930315255,-150.0,0.00038573,60]
[393699788,1762930315265,-150.0,0.00038573,60]
[393699789,1762930315279,-150.0,0.00038573,60]
[393699790,1762930315289,-200.0,0.00038575,24]
[393699791,1762930315299,-500.0,0.00038585,30]
[393699792,1762930315311,-500.0,0.0003859,20]
[393699793,1762930315321,-500.0,0.00038591,7]
[393699794,1762930315331,-500.0,0.00038591,20]
[393699795,1762930315342,-586.15,0.00038591,20]
[393699796,1762930315353,-500.0,0.00038591,20]
[393699797,1762930315363,-500.0,0.00038591,20]
[393699798,1762930315372,-500.0,0.00038591,20]
[393699799,1762930315382,-1051.61,0.00038591,20]
[393699800,1762930315391,-507.42,0.00038591,20]
[393699801,1762930315400,-500.0,0.00038591,20]
[393699802,1762930315410,-523.96,0.00038591,20]
[393699803,1762930315420,-500.0,0.00038591,20]
[393699804,1762930315430,-500.0,0.00038591,20]
[393699805,1762930315442,-841.89,0.00038591,20]
[393699806,1762930315452,-500.0,0.00038591,20]
[393699807,1762930315461,-500.0,0.00038591,20]
[393699808,1762930315471,-500.0,0.00038591,20]
[393699809,1762930315481,-574.73,0.00038591,20]
[393699810,1762930315491,-500.0,0.00038591,20]
[393699811,1762930315501,-500.0,0.00038591,20]
[393699812,1762930315510,-611.18885753,0.00038591,20]
[393699813,1762930315520,-254.76,0.00038591,20]
[393699814,1762930315530,-535.32,0.00038591,20]
[393699815,1762930315540,-517.41,0.00038591,20]
[393699816,1762930315550,-500.0,0.00038591,20]
[393699817,1762930315559,-500.0,0.00038591,20]
[393699818,1762930315569,-509.06,0.00038591,20]
[393699819,1762930315578,-500.0,0.00038591,20]
[393699820,1762930315587,-500.0,0.00038591,20]
[393699821,1762930315597,-500.0,0.00038591,20]
[393699822,1762930315606,-500.0,0.00038591,20]
[393699823,1762930315616,-642.46,0.00038591,20]
[393699824,1762930315625,-629.75019874,0.00038591,20]
[393699825,1762930315635,-500.0,0.00038591,20]
[393699826,1762930315645,-500.0,0.00038591,20]
[393699827,1762930315654,-500.0,0.00038591,20]
[393699828,1762930315664,-500.0,0.00038591,20]
[393699829,1762930315674,-225.15738729,0.00038591,20]
[393699830,1762930315684,-500.0,0.00038591,20]
[393699831,1762930315694,-519.34,0.00038591,20]
[393699832,1762930315704,-408.53683201,0.00038591,20]
[393699833,1762930315714,-1987.1,0.00038591,20]
[393699834,1762930315723,-500.0,0.00038591,20]
[393699835,1762930315733,-883.05,0.00038591,20]
[393699836,1762930315743,-562.96,0.00038591,20]
[393699837,1762930315752,-500.0,0.00038591,20]
[393699838,1762930315762,-757.86,0.00038591,20]
[393699839,1762930315771,-2119.42,0.00038591,2]
[393699840,1762930315781,-883.7,0.00038591,20]
[393699841,1762930315790,-500.0,0.00038591,20]
[393699842,1762930315800,-500.0,0.00038591,20]
[393699843,1762930315810,-960.02,0.00038591,20]
[393699844,1762930315819,-500.0,0.00038591,20]
[393699845,1762930315829,-500.0,0.00038591,20]
[393699846,1762930315838,-747.92,0.00038591,20]
[393699847,1762930315848,-550.51,0.00038591,20]
[393699848,1762930315858,-500.0,0.00038591,20]
[393699849,1762930315868,-572.01,0.00038591,20]
[393699850,1762930315878,-763.79,0.00038591,20]
[393699851,1762930315889,-500.0,0.00038591,20]
[393699852,1762930315899,-732.14,0.00038591,20]
[393699853,1762930315909,-500.0,0.00038591,20]
[393699854,1762930315920,-500.0,0.00038591,20]
[393699855,1762930315929,-1200.01,0.00038591,20]
[393699856,1762930315939,-667.99,0.00038591,20]
[393699857,1762930315948,-724.6,0.00038591,20]
[393699858,1762930315957,-1697.1,0.00038591,20]
[393699859,1762930315967,-500.0,0.00038591,20]
[393699860,1762930315976,-518.5,0.00038591,20]
[393699861,1762930315985,-500.0,0.00038591,20]
[393699862,1762930315994,-1171.64,0.00038591,20]
[393699863,1762930316003,-547.75,0.00038591,20]
[393699864,1762930316013,-725.31,0.00038591,20]
[393699865,1762930316022,-1486.89,0.00038591,20]
[393699866,1762930316031,-991.84,0.00038591,20]
[393699867,1762930316041,-678.36,0.00038591,20]
[393699868,1762930316050,-1330.19,0.00038591,20]
[393699869,1762930316059,-500.0,0.00038591,20]
[393699870,1762930316069,-711.07,0.00038591,20]
[393699871,1762930316078,-1065.8,0.00038591,20]
[393699872,1762930316088,-800.76,0.00038591,20]
[393699873,1762930316097,-590.33,0.00038591,20]
[393699874,1762930316107,-500.0,0.00038591,20]
[393699875,1762930316116,-1016.04,0.00038591,20]
[393699876,1762930316125,-616.05,0.00038591,20]
[393699877,1762930316135,-1443.08,0.00038591,20]
[393699878,1762930316145,-1867.44,0.00038591,20]
[393699879,1762930316155,-500.0,0.00038591,20]
[393699880,1762930316164,-605.59,0.00038591,20]
[393699881,1762930316174,-500.0,0.00038591,20]
[393699882,1762930316183,-500.0,0.00038591,20]
[393699883,1762930316193,-500.0,0.00038591,20]
[393699884,1762930316203,-561.01,0.00038591,20]
[393699885,1762930316212,-830.98,0.00038591,20]
[393699886,1762930316222,-500.0,0.00038591,20]
[393699887,1762930316232,-1098.05342992,0.00038593,30]
[393699888,1762930316242,-500.0,0.00038599,20]
[393699889,1762930316251,-150.0,0.000386,9]
[393699890,1762930316261,-1000.0,0.000386,7]
[393699891,1762930316275,-356.19,0.00038603,2]
[393699892,1762930316291,-500.0,0.00038606,20]
[393699893,1762930316312,-500.0,0.00038606,20]
[393699894,1762930316322,-154.03,0.00038608,120]
[393699895,1762930316332,-500.0,0.00038617,30]
[393699896,1762930316344,-152.0,0.00038622,8]
[393699897,1762930316353,-500.0,0.0003863,30]
[393699898,1762930316364,-2517.21091838,0.0003865,2]
[393699899,1762930316374,-1928.72412975,0.00038664,2]
[393699900,1762930316385,-150.0,0.00038696,7]
[393699901,1762930316395,-500.0,0.00038698,20]
[393699902,1762930316406,-201.04093381,0.00038698,20]
[393699903,1762930316416,-500.0,0.00038699,20]
[393699904,1762930316426,-500.0,0.00038699,20]
[393699905,1762930316436,-500.0,0.00038699,20]
[393699906,1762930316446,-184.06468804,0.00038699,20]
[393699907,1762930316455,-475.17215308,0.00038699,20]
[393699908,1762930316465,-500.0,0.00038699,20]
[393699909,1762930316474,-500.0,0.00038699,20]
[393699910,1762930316483,-500.0,0.00038699,20]
[393699911,1762930316492,-637.18,0.00038699,20]
[393699912,1762930316502,-644.7268494,0.00038699,20]
[393699913,1762930316511,-500.0,0.00038699,20]
[393699914,1762930316521,-500.0,0.00038699,2]
[393699915,1762930316531,-253.21694424,0.00038699,20]
[393699916,1762930316540,-500.0,0.00038699,20]
[393699917,1762930316550,-623.71839784,0.00038699,20]
[393699918,1762930316559,-500.0,0.00038699,20]
[393699919,1762930316568,-1290.86,0.00038699,2]
[393699920,1762930316578,-500.0,0.00038699,20]
[393699921,1762930316587,-500.0,0.00038699,20]
[393699922,1762930316596,-519.53,0.00038699,20]
[393699923,1762930316606,-500.0,0.00038699,20]
[393699924,1762930316615,-500.0,0.00038699,20]
[393699925,1762930316625,-500.0,0.00038699,15]
[393699926,1762930316634,-500.0,0.00038699,20]
[393699927,1762930316643,-535.82,0.00038699,20]
[393699928,1762930316653,-500.0,0.00038699,20]
[393699929,1762930316662,-523.83,0.00038699,20]
[393699930,1762930316672,-694.72,0.00038699,20]
[393699931,1762930316682,-500.0,0.00038699,20]
[393699932,1762930316691,-300.0,0.00038699,20]
[393699933,1762930316700,-1025.02,0.00038699,120]
[393699934,1762930316710,-500.0,0.00038699,20]
[393699935,1762930316719,-500.0,0.00038699,20]
[393699936,1762930316729,-500.0,0.00038699,20]
[393699937,1762930316738,-377.53603007,0.00038699,20]
[393699938,1762930316748,-551.44,0.00038699,20]
[393699939,1762930316757,-500.0,0.00038699,20]
[393699940,1762930316767,-739.71,0.00038699,20]
[393699941,1762930316775,-526.05253746,0.00038699,20]
[393699942,1762930316785,-500.0,0.00038699,20]
[393699943,1762930316794,-500.0,0.00038699,20]
[393699944,1762930316804,-579.99,0.00038699,20]
[393699945,1762930316815,-417.74132347,0.00038699,20]
[393699946,1762930316824,-514.13,0.00038699,20]